lending/lending_fUSD_20240128
["ID","MTS","AMOUNT","RATE_DAILY","PERIOD"]
[312943895,1706482242489,-346.77064988,0.00032777,2]
[312943896,1706482242498,-2253.95298752,0.00032777,2]
[312943897,1706482242507,-184.05084569,0.00032777,2]
[312943898,1706482242517,-19004.46,0.00032877,2]
[312943899,1706482242526,-166.91,0.00032877,2]
[312943900,1706482242535,-633.2723069,0.0003297,2]
[312943901,1706482242545,-750.0,0.00033,3]
[312943902,1706482242554,-28777.02075206,0.00033,2]
[312943903,1706482242563,-170.11,0.00033021,2]
[312943904,1706482242573,-1003.49,0.00033021,2]
[312943905,1706482242583,-908.94,0.00033021,2]
[312943906,1706482242592,-1043.23,0.00033021,2]
[312943907,1706482242602,-154.1,0.00033059,2]
[312943908,1706482242611,-1859.0,0.00033071,2]
[312943909,1706482242620,-948.0,0.00033071,2]
[312943911,1706482242629,-838.0,0.00033071,2]
[312943912,1706482242638,-215.0,0.00033071,2]
[312943914,1706482242647,-213.673,0.00033071,2]
[312943916,1706482242657,-1233.0,0.00033071,2]
[312943918,1706482242666,-1252.0,0.00033071,2]
[312943919,1706482242675,-704.0,0.00033071,2]
[312943921,1706482242684,-1934.0,0.00033071,2]
[312943923,1706482242693,-861.0,0.00033071,2]
[312943924,1706482242702,-150.0,0.00033071,2]
[312943926,1706482242712,-320.0,0.00033071,2]
[312943927,1706482242721,-1145.543,0.00033071,2]
[312943928,1706482242730,-227.967,0.00033071,2]
[312943929,1706482242739,-2279.0,0.00033071,2]
[312943931,1706482242748,-4187.0,0.00033071,2]
[312943932,1706482242757,-2912.0,0.00033071,2]
[312943933,1706482242766,-150.0,0.00033071,2]
[312943934,1706482242775,-5550.41,0.00033071,2]
[312943935,1706482242784,-19753.0,0.00033071,2]
[312943936,1706482242793,-153.0,0.00033071,2]
[312943938,1706482242803,-150.0,0.00033071,2]
[312943940,1706482242812,-1032.0,0.00033071,2]
[312943942,1706482242820,-153.0,0.00033071,2]
[312943943,1706482242830,-153.28,0.00033071,2]
[312943944,1706482242839,-170.11,0.00033453,2]
[312943945,1706482242848,-1003.49,0.00033453,2]
[312943946,1706482242857,-908.94,0.00033453,2]
[312943947,1706482242866,-1043.23,0.00033453,2]
[312943948,1706482242875,-1313.95,0.00033509,2]
[312943949,1706482242883,-280.54,0.0003365,2]
[312943951,1706482242892,-152.8666253,0.00033686,2]
[312943953,1706482242901,-154.1,0.0003379,2]
[312943955,1706482242910,-170.11,0.00033886,2]
[312943957,1706482242919,-1003.49,0.00033886,2]
[312943959,1706482242928,-908.94,0.00033886,2]
[312943961,1706482242937,-1043.23,0.00033886,2]
[312943963,1706482242945,-1429.45648769,0.00033891,6]
[312943965,1706482242954,-181.0,0.00034133,2]
[312943966,1706482242963,-155.31624059,0.00034174,4]
[312943967,1706482242973,-192.90231929,0.00034174,2]
[312943968,1706482242983,-170.11,0.00034318,2]
[312943969,1706482242992,-1003.49,0.00034318,2]
[312943970,1706482243002,-908.94,0.00034318,2]
[312943971,1706482243010,-1043.23,0.00034318,2]
[312943972,1706482243019,-266.04333287,0.00034373,6]
[312943973,1706482243030,-154.1,0.00034521,2]
[312943974,1706482243039,-170.11,0.00034751,2]
[312943975,1706482243048,-1003.49,0.00034751,2]
[312943976,1706482243058,-908.94,0.00034751,2]
[312943977,1706482243067,-1043.23,0.00034751,2]
[312943978,1706482243076,-8981.01105791,0.000349,4]
[312943979,1706482243085,-833.65789025,0.000349,2]
[312943980,1706482243095,-833.65789013,0.000349,2]
[312943981,1706482243104,-833.65789013,0.000349,2]
[312943982,1706482243114,-833.65789013,0.000349,2]
[312943983,1706482243123,-157.39860552,0.000349,2]
[312943984,1706482243132,-367.55,0.00034948,2]
[312943985,1706482243141,-203.0,0.0003495,16]
[312943986,1706482243151,-417.8413979,0.0003499,2]
[312943987,1706482243162,-444.00251593,0.00035,4]
[312943988,1706482243172,-155.0,0.00035,2]
[312943990,1706482243183,-5000.0,0.00035,3]
[312943991,1706482243192,-155.0,0.00035,2]
[312943992,1706482243201,-246148.87201583,0.00035,2]
[312943993,1706482243211,-3841.59774499,0.00035,2]
[312943994,1706482243222,-934.03859685,0.00035,2]
[312943995,1706482243233,-448.18973354,0.00035,4]
[312943997,1706482243242,-1263.30372367,0.00035,4]
[312943999,1706482243251,-800.0,0.00035,3]
[312944001,1706482243260,-3000.0,0.00035,2]
[312944003,1706482243270,-833.65789013,0.00035035,2]
[312944005,1706482243280,-254.73681271,0.00035184,2]
[312944008,1706482243289,-170.11,0.00035184,2]
[312944011,1706482243298,-1003.49,0.00035184,2]
[312944014,1706482243308,-908.94,0.00035184,2]
[312944017,1706482243317,-1043.23,0.00035184,2]
[312944019,1706482243326,-154.1,0.00035251,2]
[312944021,1706482243335,-843.84,0.00035302,2]
[312944024,1706482243355,-21389.79302801,0.00035331,2]
[312944026,1706482243365,-170.11,0.00035616,2]
[312944028,1706482243374,-1003.49,0.00035616,2]
[312944030,1706482243383,-908.94,0.00035616,2]
[312944032,1706482243392,-1043.23,0.00035616,2]
[312944033,1706482243402,-156.16,0.00035711,2]
[312944034,1706482243412,-150.0,0.00035833,2]
[312944035,1706482243422,-1429.45648769,0.00035836,8]
[312944036,1706482243431,-150.0,0.00035888,2]
[312944037,1706482243441,-575.31,0.00035934,2]
[312944038,1706482243450,-167.08,0.00035951,2]
[312944039,1706482243460,-154.1,0.00035982,2]
[312944040,1706482243470,-297.7852918,0.00036,4]
[312944041,1706482243481,-150.0,0.00036047,2]
[312944042,1706482243491,-698.788,0.00036071,2]
[312944043,1706482243501,-948.0,0.00036071,2]
[312944044,1706482243511,-838.0,0.00036071,2]
[312944045,1706482243522,-215.0,0.00036071,2]
[312944046,1706482243531,-1233.0,0.00036071,2]
[312944047,1706482243540,-1252.0,0.00036071,2]
[312944048,1706482243550,-197.644,0.00036071,2]
[312944049,1706482243559,-861.0,0.00036071,2]
[312944050,1706482243571,-150.0,0.00036071,2]
[312944051,1706482243579,-320.0,0.00036071,2]
[312944052,1706482243589,-1138.0,0.00036071,2]
[312944053,1706482243598,-210.0,0.00036071,2]
[312944054,1706482243607,-2279.0,0.00036071,2]
[312944055,1706482243617,-1445.363,0.00036071,2]
[312944056,1706482243626,-2912.0,0.00036071,2]
[312944057,1706482243635,-150.0,0.00036071,2]
[312944058,1706482243867,-19753.0,0.00036071,2]
[312944059,1706482243876,-150.0,0.00036071,2]
[312944060,1706482243884,-1032.0,0.00036071,2]
[312944061,1706482243894,-151.73327215,0.00036074,2]
[312944062,1706482243903,-150.0,0.00036122,2]
[312944063,1706482243911,-150.0,0.00036123,2]
[312944064,1706482243920,-151.0129,0.00036148,8]
[312944065,1706482243929,-150.0,0.00036181,2]
[312944066,1706482243938,-150.0,0.00036196,2]
[312944067,1706482243947,-151.0129,0.00036198,8]
[312944068,1706482243956,-150.0,0.00036249,2]
[312944069,1706482243966,-150.0,0.00036261,2]
[312944070,1706482243976,-150.0,0.00036291,2]
[312944071,1706482243984,-150.0,0.00036352,2]
[312944072,1706482243994,-150.0,0.0003641,2]
[312944073,1706482244003,-151.0129,0.00036448,12]
[312944074,1706482244012,-150.0,0.00036473,2]
[312944075,1706482244021,-150.0,0.00036503,2]
[312944076,1706482244030,-150.0,0.00036507,2]
[312944077,1706482244039,-150.0,0.00036535,2]
[312944078,1706482244049,-150.0,0.0003661,2]
[312944079,1706482244060,-833.65789013,0.00036614,2]
[312944080,1706482244069,-150.0,0.00036681,2]
[312944081,1706482244078,-150.0,0.00036703,2]
[312944082,1706482244087,-150.0,0.00036711,2]
[312944083,1706482244096,-154.1,0.00036712,2]
[312944084,1706482244104,-150.0,0.00036719,2]
[312944085,1706482244118,-151.0129,0.00036748,12]
[312944086,1706482244127,-1000.0,0.000368,2]
[312944087,1706482244136,-689.6644542,0.0003683,4]
[312944088,1706482244145,-151.0129,0.00036848,8]
[312944089,1706482244155,-2890.72842138,0.0003689,7]
[312944090,1706482244164,-150.0,0.00036897,2]
[312944091,1706482244173,-150.0,0.00036912,2]
[312944092,1706482244182,-30181.4303601,0.00036926,2]
[312944093,1706482244192,-1500.0,0.00036956,2]
[312944094,1706482244200,-150.0,0.00036965,2]
[312944095,1706482244212,-3339.87694844,0.00037,7]
[312944096,1706482244222,-850.0,0.00037,3]
[312944097,1706482244232,-150.0,0.00037,2]
[312944098,1706482244243,-150.0,0.00037,20]
[312944099,1706482244253,-155.0,0.00037,2]
[312944100,1706482244263,-176.65,0.00037,2]
[312944101,1706482244273,-5552.52897729,0.00037,2]
[312944102,1706482244283,-2398.75,0.00037016,2]
[312944103,1706482244292,-150.0,0.00037031,2]
[312944104,1706482244301,-150.0,0.00037039,2]
[312944105,1706482244310,-150.0,0.00037101,2]
[312944106,1706482244320,-151.0129,0.00037148,17]
[312944107,1706482244330,-251.44102237,0.00037198,13]
[312944108,1706482244339,-150.0,0.00037205,2]
[312944109,1706482244348,-367.55,0.00037212,2]
[312944110,1706482244357,-150.0,0.00037223,2]
[312944111,1706482244366,-150.0,0.0003723,2]
[312944112,1706482244376,-150.0,0.00037233,2]
[312944113,1706482244386,-150.0,0.00037274,2]
[312944114,1706482244395,-150.0,0.00037325,2]
[312944115,1706482244404,-150.0,0.00037333,2]
[312944116,1706482244414,-150.0,0.00037408,2]
[312944117,1706482244423,-154.1,0.00037443,2]
[312944118,1706482244432,-151.0129,0.00037448,15]
[312944119,1706482244447,-150.0,0.00037457,2]
[312944120,1706482244457,-152.8666253,0.00037471,2]
[312944121,1706482244466,-266.04333287,0.00037478,8]
[312944122,1706482244475,-1500.0,0.00037512,2]
[312944123,1706482244484,-150.0,0.00037517,2]
[312944124,1706482244494,-176.65,0.00037548,2]
[312944125,1706482244503,-150.0,0.0003757,2]
[312944126,1706482244513,-350.91972442,0.00037589,4]
[312944127,1706482244523,-248.92495262,0.00037591,4]
[312944128,1706482244533,-150.0,0.00037654,2]
[312944129,1706482244541,-150.0,0.00037669,2]
[312944130,1706482244550,-200.0,0.0003767,5]
[312944131,1706482244559,-800.0,0.0003767,5]
[312944132,1706482244571,-150.0,0.00037695,2]
[312944133,1706482244581,-153.85,0.000377,3]
[312944134,1706482244590,-153.85,0.000377,3]
[312944135,1706482244599,-153.85,0.000377,3]
[312944136,1706482244608,-153.85,0.000377,3]
[312944137,1706482244617,-153.85,0.000377,3]
[312944138,1706482244626,-153.85,0.000377,3]
[312944139,1706482244635,-153.85,0.000377,3]
[312944140,1706482244644,-153.85,0.000377,3]
[312944141,1706482244655,-153.85,0.000377,3]
[312944142,1706482244665,-153.85,0.000377,3]
[312944143,1706482244674,-153.85,0.000377,3]
[312944144,1706482244683,-153.85,0.000377,3]
[312944145,1706482244693,-153.85,0.000377,3]
[312944146,1706482244702,-153.85,0.000377,3]
[312944147,1706482244711,-7675.48286218,0.000377,3]
[312944148,1706482244720,-203.87315099,0.00037703,2]
[312944149,1706482244729,-300.0,0.00037738,2]
[312944150,1706482244740,-150.0,0.0003774,2]
[312944151,1706482244749,-150.0,0.00037745,2]
[312944152,1706482244759,-151.0129,0.00037748,10]
[312944153,1706482244769,-1500.0,0.00037763,2]
[312944154,1706482244778,-1500.0,0.00037775,2]
[312944155,1706482244789,-1429.45648769,0.00037782,11]
[312944156,1706482244798,-500.0,0.00037784,2]
[312944157,1706482244807,-500.0,0.00037784,2]
[312944158,1706482244817,-500.0,0.00037784,2]
[312944159,1706482244827,-276.1845,0.00037784,2]
[312944160,1706482244836,-1000.0,0.00037784,2]
[312944161,1706482244847,-1000.0,0.00037784,2]
[312944162,1706482244857,-1000.0,0.00037784,2]
[312944163,1706482244867,-1000.0,0.00037784,2]
[312944164,1706482244877,-1000.0,0.00037784,2]
[312944165,1706482244887,-1000.0,0.00037784,2]
[312944166,1706482244897,-1000.0,0.00037784,2]
[312944167,1706482244906,-1000.0,0.00037784,2]
[312944168,1706482244917,-1000.0,0.00037784,2]
[312944169,1706482244927,-1000.0,0.00037784,2]
[312944170,1706482244936,-1000.0,0.00037784,2]
[312944171,1706482244946,-1000.0,0.00037784,2]
[312944172,1706482244956,-1000.0,0.00037784,2]
[312944173,1706482244966,-1000.0,0.00037784,2]
[312944174,1706482244975,-1000.0,0.00037784,2]
[312944175,1706482244985,-1000.0,0.00037784,2]
[312944176,1706482244994,-1000.0,0.00037784,2]
[312944177,1706482245004,-1000.0,0.00037784,2]
[312944178,1706482245014,-1000.0,0.00037784,2]
[312944179,1706482245023,-1000.0,0.00037784,2]
[312944180,1706482245032,-1000.0,0.00037784,2]
[312944181,1706482245042,-1000.0,0.00037784,2]
[312944182,1706482245051,-1000.0,0.00037784,2]
[312944183,1706482245060,-1000.0,0.00037784,2]
[312944184,1706482245069,-1000.0,0.00037784,2]
[312944185,1706482245079,-1000.0,0.00037784,2]
[312944186,1706482245088,-1000.0,0.00037784,2]
[312944187,1706482245097,-484.9155,0.00037784,2]
[312944188,1706482245106,-500.0,0.00037784,2]
[312944189,1706482245126,-500.0,0.00037784,2]
[312944190,1706482245136,-500.0,0.00037784,2]
[312944191,1706482245145,-500.0,0.00037784,2]
[312944192,1706482245155,-500.0,0.00037784,2]
[312944193,1706482245165,-500.0,0.00037784,2]
[312944194,1706482245175,-500.0,0.00037784,2]
[312944195,1706482245184,-150.0,0.00037789,2]
[312944196,1706482245193,-150.0,0.00037801,2]
[312944197,1706482245203,-150.0,0.00037838,2]
[312944198,1706482245215,-151.0129,0.00037848,8]
[312944199,1706482245226,-1500.0,0.00037851,2]
[312944200,1706482245237,-150.0,0.00037867,2]
[312944201,1706482245249,-150.0,0.00037879,2]
[312944202,1706482245259,-300.0,0.00037891,2]
[312944203,1706482245269,-150.0,0.00037893,2]
[312944204,1706482245279,-18818.67802281,0.00037897,2]
[312944205,1706482245289,-150.1,0.000379,2]
[312944206,1706482245299,-368.63151666,0.000379,2]
[312944207,1706482245308,-2055.033235,0.000379,2]
[312944208,1706482245319,-500.0,0.000379,2]
[312944209,1706482245328,-653388.950131,0.000379,3]
[312944210,1706482245338,-1526.717755,0.000379,25]
[312944211,1706482245348,-150.0,0.00037901,2]
[312944212,1706482245358,-150.0,0.00037902,2]
[312944213,1706482245367,-150.0,0.00037906,2]
[312944214,1706482245377,-150.0,0.0003791,2]
[312944215,1706482245387,-150.0,0.00037916,2]
[312944216,1706482245397,-150.0,0.0003794,2]
[312944217,1706482245406,-151.0129,0.00037948,17]
[312944218,1706482245416,-300.0,0.00037954,2]
[312944219,1706482245426,-230.58874034,0.00037969,4]
[312944220,1706482245436,-155.0,0.00037969,4]
[312944221,1706482245445,-242.58443095,0.0003797,4]
[312944222,1706482245455,-191.19525719,0.00037971,4]
[312944223,1706482245465,-377.11789182,0.00037971,4]
[312944224,1706482245475,-155.0,0.00037971,4]
[312944225,1706482245485,-202.97217438,0.00037971,4]
[312944226,1706482245494,-1043.0192466,0.00037971,4]
[312944227,1706482245503,-233.29692962,0.00037971,4]
[312944228,1706482245513,-150.0,0.00037971,2]
[312944229,1706482245523,-328.12380494,0.00037971,2]
[312944230,1706482245533,-128977.735572,0.00037971,2]
[312944231,1706482245542,-663.1788746,0.00037971,2]
[312944232,1706482245551,-2061.1214997,0.00037971,2]
[312944233,1706482245561,-300.02,0.00037972,2]
[312944234,1706482245573,-3000.78381541,0.00037972,2]
[312944235,1706482245583,-610.1887134,0.00037973,4]
[312944236,1706482245592,-500.0,0.00037973,2]
[312944237,1706482245602,-417.8413979,0.00037987,2]
[312944238,1706482245612,-131730.74615967,0.00037997,2]
[312944239,1706482245621,-188.19657182,0.00037999,2]
[312944240,1706482245631,-150.0,0.00037999,2]
[312944241,1706482245640,-188.19657182,0.00037999,2]
[312944243,1706482245650,-150.0,0.00037999,2]
[312944244,1706482245660,-940668.78598146,0.00038,2]
[312944245,1706482245669,-1661729.2552213,0.00038,2]
[312944246,1706482245679,-2095.76,0.00038,7]
[312944247,1706482245688,-1648.79,0.00038,7]
[312944248,1706482245697,-5839.85633545,0.00038,4]
[312944249,1706482245707,-1576.69697089,0.00038,5]
[312944251,1706482245716,-165.670593,0.00038,2]
[312944253,1706482245725,-3000.0,0.00038,21]
[312944255,1706482245735,-300.0,0.00038,2]
[312944256,1706482245744,-300.0,0.00038009,2]
[312944257,1706482245754,-3000.0,0.0003801,21]
[312944258,1706482245763,-4904.947085,0.0003802,21]
[312944259,1706482245776,-3004.87,0.00038053,2]
[312944260,1706482245786,-176.65,0.00038096,2]
[312944261,1706482245796,-154.1,0.00038174,2]
[312944262,1706482245805,-833.65789013,0.00038193,2]
[312944263,1706482245814,-151.0129,0.00038198,15]
[312944264,1706482245825,-155.0,0.0003837,2]
[312944265,1706482245835,-151.0129,0.00038498,16]
[312944266,1706482245847,-843.84,0.00038511,2]
[312944267,1706482245858,-2253.95298751,0.00038539,2]
[312944268,1706482245869,-183.1306794,0.00038644,2]
[312944269,1706482245879,-153.303,0.00038654,2]
[312944270,1706482245888,-223.973,0.00038654,2]
[312944271,1706482245898,-256.0,0.00038654,2]
[312944273,1706482245907,-181.0,0.00038752,2]
[312944275,1706482245918,-151.0129,0.00038798,19]
[312944277,1706482245927,-1878.37122091,0.00038803,2]
[312944279,1706482245937,-633.27230688,0.00038803,2]
[312944281,1706482245946,-12826.57997248,0.0003888,2]
[312944282,1706482245956,-12826.57997245,0.0003888,2]
[312944283,1706482245965,-12826.57997245,0.0003888,2]
[312944285,1706482245974,-12826.57997245,0.0003888,2]
[312944287,1706482245984,-12826.57997245,0.0003888,2]
[312944288,1706482245994,-6259.11,0.000389,7]
[312944289,1706482246004,-242.04894458,0.000389,4]
[312944290,1706482246013,-707.367626,0.000389,2]
[312944291,1706482246023,-154.1,0.00038904,2]
[312944292,1706482246032,-156.16,0.00038958,2]
[312944293,1706482246041,-282.09565989,0.0003898,2]
[312944294,1706482246051,-1430.39000108,0.00039,2]
[312944295,1706482246060,-620.63088492,0.00039,4]
[312944296,1706482246070,-976.71698119,0.00039,4]
[312944297,1706482246078,-197.21553503,0.00039,4]
[312944298,1706482246087,-900.0,0.00039,3]
[312944299,1706482246097,-331.617679,0.00039,2]
[312944300,1706482246106,-150.0,0.00039009,2]
[312944301,1706482246115,-188.19657182,0.00039069,2]
[312944302,1706482246124,-150.0,0.00039069,2]
[312944303,1706482246133,-948.0,0.00039071,2]
[312944304,1706482246143,-838.0,0.00039071,2]
[312944305,1706482246153,-1233.0,0.00039071,2]
[312944306,1706482246162,-1252.0,0.00039071,2]
[312944307,1706482246171,-861.0,0.00039071,2]
[312944308,1706482246180,-150.0,0.00039071,2]
[312944309,1706482246190,-313.0,0.00039071,2]
[312944310,1706482246199,-1138.0,0.00039071,2]
[312944311,1706482246209,-210.0,0.00039071,2]
[312944312,1706482246221,-2279.0,0.00039071,2]
[312944313,1706482246230,-2912.0,0.00039071,2]
[312944314,1706482246239,-19753.0,0.00039071,2]
[312944315,1706482246249,-150.0,0.00039071,2]
[312944317,1706482246259,-1032.0,0.00039071,2]
[312944319,1706482246268,-943.74,0.00039178,2]
[312944321,1706482246278,-151.0129,0.00039198,17]
[312944323,1706482246287,-1000.0,0.0003926,2]
[312944325,1706482246296,-367.55,0.00039476,2]
[312944327,1706482246306,-151.0129,0.00039498,18]
[312944329,1706482246315,-3245.11947294,0.000395,2]
[312944331,1706482246325,-154.1,0.00039635,2]
[312944333,1706482246334,-7675.45,0.000397,4]
[312944335,1706482246343,-1429.45648769,0.00039727,13]
[312944337,1706482246352,-300.0,0.0003974,2]
[312944339,1706482246361,-155.0,0.0003974,2]
[312944341,1706482246371,-833.65789013,0.00039772,2]
[312944343,1706482246381,-151.0129,0.00039798,17]
[312944345,1706482246390,-346.77064986,0.00039839,2]
[312944347,1706482246399,-83323.99702868,0.00039865,2]
[312944349,1706482246408,-49969.85551671,0.000399,2]
[312944351,1706482246418,-350.00012537,0.000399,4]
[312944353,1706482246427,-106373.6591142,0.00039963,2]
[312944355,1706482246439,-663.1788746,0.00039963,2]
[312944357,1706482246448,-1700.1587329,0.00039963,2]
[312944359,1706482246458,-284745.5707364,0.0003999,2]
[312944361,1706482246468,-215.67682886,0.00039999,31]
[312944363,1706482246477,-162.88350222,0.00039999,31]
[312944366,1706482246488,-155.0,0.0004,2]
[312944368,1706482246497,-454.86974022,0.0004,2]
[312944370,1706482246507,-9142.48467158,0.0004,2]
[312944372,1706482246516,-8977.32850586,0.0004,2]
[312944373,1706482246526,-1143.46581781,0.0004,2]
[312944376,1706482246535,-9270.79828251,0.0004,2]
[312944377,1706482246545,-5353.28318402,0.0004,2]
[312944380,1706482246554,-1505.61424793,0.0004,2]
[312944381,1706482246563,-200.88542871,0.0004,2]
[312944382,1706482246575,-22069.37011199,0.0004,4]
[312944383,1706482246585,-2274.11957575,0.0004,4]
[312944384,1706482246595,-54373.72928018,0.0004,4]
[312944385,1706482246604,-2683.64346965,0.0004,4]
[312944386,1706482246615,-1086.36976472,0.0004,4]
[312944387,1706482246624,-155.0,0.0004,4]
[312944388,1706482246633,-623.61635149,0.0004,2]
[312944390,1706482246643,-190.55359364,0.0004,2]
[312944392,1706482246653,-736.94780507,0.0004,24]
[312944394,1706482246663,-5000.0,0.0004,2]
[312944396,1706482246672,-3000.0,0.0004,2]
[312944398,1706482246681,-151.0129,0.00040198,20]
[312944400,1706482246690,-150.0,0.00040219,2]
[312944402,1706482246700,-156.06207702,0.000403,4]
[312944404,1706482246709,-154.1,0.00040365,2]
[312944406,1706482246718,-167.08,0.00040445,2]
[312944408,1706482246727,-151.0129,0.00040498,20]
[312944410,1706482246736,-266.04333287,0.00040584,9]
[312944412,1706482246745,-1000.0,0.00040733,2]
[312944414,1706482246754,-151.0129,0.00040798,20]
[312944416,1706482246764,-2095.76,0.000408,7]
[312944418,1706482246775,-1648.79,0.000408,7]
[312944420,1706482246787,-3444.44324304,0.00041,4]
[312944422,1706482246796,-800.0,0.00041,2]
[312944424,1706482246805,-250.0,0.00041,25]
[312944426,1706482246814,-258.0,0.00041062,2]
[312944428,1706482246823,-653.86233435,0.00041081,13]
[312944430,1706482246832,-1096.65,0.00041086,10]
[312944432,1706482246841,-1712.23,0.00041086,10]
[312944434,1706482246850,-1426.86,0.00041086,10]
[312944436,1706482246860,-155.79994966,0.0004109,4]
[312944438,1706482246869,-2906.43367088,0.0004109,4]
[312944440,1706482246878,-16789.3048591,0.00041091,4]
[312944442,1706482246887,-203.05035092,0.00041091,4]
[312944444,1706482246896,-302.19373493,0.00041094,4]
[312944446,1706482246905,-155.0,0.00041094,4]
[312944448,1706482246915,-151.0,0.00041096,7]
[312944450,1706482246924,-155.741005,0.00041096,14]
[312944452,1706482246934,-151.0,0.00041096,14]
[312944454,1706482246943,-151.0,0.00041096,14]
[312944456,1706482246952,-151.0,0.00041096,14]
[312944458,1706482246961,-151.0,0.00041096,7]
[312944460,1706482246971,-10721.75,0.00041096,2]
[312944462,1706482246980,-181.0,0.00041096,2]
[312944465,1706482246989,-150.0,0.00041096,2]
[312944467,1706482246998,-151.0,0.00041096,14]
[312944468,1706482247007,-151.0,0.00041096,14]
[312944469,1706482247016,-151.0,0.00041096,14]
[312944470,1706482247026,-226.448814,0.00041096,14]
[312944471,1706482247035,-151.0,0.00041096,14]
[312944472,1706482247044,-151.0,0.00041096,14]
[312944473,1706482247053,-151.0,0.00041096,14]
[312944474,1706482247062,-151.0,0.00041096,14]
[312944475,1706482247071,-151.0,0.00041096,14]
[312944476,1706482247080,-288.465136,0.00041096,14]
[312944477,1706482247089,-151.0,0.00041096,14]
[312944478,1706482247098,-151.0,0.00041096,14]
[312944479,1706482247107,-151.0,0.00041096,14]
[312944480,1706482247117,-151.0,0.00041096,14]
[312944481,1706482247126,-151.0,0.00041096,14]
[312944482,1706482247135,-158.177503,0.00041096,14]
[312944483,1706482247143,-268.698889,0.00041096,14]
[312944484,1706482247153,-268.698889,0.00041096,14]
[312944485,1706482247161,-268.698889,0.00041096,14]
[312944486,1706482247170,-268.698889,0.00041096,14]
[312944487,1706482247179,-151.0,0.00041096,14]
[312944488,1706482247189,-268.698889,0.00041096,14]
[312944489,1706482247198,-151.0,0.00041096,14]
[312944490,1706482247208,-268.698889,0.00041096,14]
[312944491,1706482247218,-151.0,0.00041096,14]
[312944492,1706482247227,-268.698889,0.00041096,14]
[312944493,1706482247237,-1818.67,0.00041096,5]
[312944494,1706482247246,-154.1,0.00041096,2]
[312944495,1706482247255,-1390.74,0.000411,2]
[312944496,1706482247265,-1390.74,0.000411,2]
[312944497,1706482247275,-1390.74,0.000411,2]
[312944498,1706482247284,-1390.74,0.000411,2]
[312944499,1706482247294,-1390.74,0.000411,2]
[312944500,1706482247303,-1390.74,0.000411,2]
[312944501,1706482247312,-1390.74,0.000411,2]
[312944502,1706482247321,-1390.74,0.000411,2]
[312944503,1706482247331,-1390.74,0.000411,2]
[312944504,1706482247341,-1390.74,0.000411,2]
[312944505,1706482247350,-155.0,0.0004111,2]
[312944506,1706482247360,-151.0129,0.00041198,22]
[312944507,1706482247369,-152.8666253,0.00041257,11]
[312944508,1706482247380,-158.46,0.000413,7]
[312944509,1706482247390,-833.65789013,0.00041351,5]
[312944510,1706482247399,-151.0129,0.00041498,22]
[312944511,1706482247408,-250.0,0.000415,26]
[312944512,1706482247418,-12826.57997245,0.00041521,3]
[312944513,1706482247428,-150.0,0.00041654,2]
[312944514,1706482247438,-150.0,0.00041654,2]
[312944515,1706482247447,-1429.45648769,0.00041673,16]
[312944516,1706482247457,-367.55,0.00041739,2]
[312944517,1706482247467,-151.0129,0.00041798,22]
[312944518,1706482247477,-275.5,0.000418,3]
[312944519,1706482247488,-150.0,0.00041816,30]